fUST/lending_fUST_20240910
["ID","MTS","AMOUNT","RATE_DAILY","PERIOD"]
[337662421,1725927037647,-250.0,0.00020305,2]
[337662423,1725927037656,-300.0,0.00020331,2]
[337662424,1725927037665,-2000.0,0.00020332,2]
[337662425,1725927037674,-2000.0,0.00020332,2]
[337662426,1725927037684,-250.0,0.00020358,2]
[337662427,1725927037693,-2000.0,0.0002037,2]
[337662428,1725927037703,-173.687882,0.00020469,2]
[337662429,1725927037713,-251.0,0.00020822,2]
[337662430,1725927037722,-150.0,0.00020826,2]
[337662431,1725927037731,-150.0,0.00021239,2]
[337662432,1725927037741,-150.0,0.00021421,2]
[337662433,1725927037751,-5429.8097958,0.00021546,2]
[337662434,1725927037762,-168.05510299,0.00021565,2]
[337662435,1725927037772,-4408.14020037,0.00021566,2]
[337662436,1725927037781,-1155.77892939,0.00021578,2]
[337662437,1725927037790,-168.05510299,0.00021578,2]
[337662438,1725927037800,-5199.62808372,0.00021647,2]
[337662439,1725927037812,-230.18171208,0.00021647,2]
[337662440,1725927037821,-389.96,0.00021655,3]
[337662441,1725927037830,-194.98,0.00021655,3]
[337662442,1725927037840,-584.94,0.00021655,3]
[337662443,1725927037850,-500.0,0.00021664,2]
[337662444,1725927037859,-500.0,0.00021664,2]
[337662445,1725927037869,-500.0,0.00021664,2]
[337662446,1725927037878,-400.00000002,0.00021664,2]
[337662447,1725927037889,-500.0,0.00021664,2]
[337662448,1725927037900,-500.0,0.00021664,2]
[337662449,1725927037911,-500.0,0.00021664,2]
[337662450,1725927037921,-500.0,0.00021664,2]
[337662451,1725927037931,-500.0,0.00021664,2]
[337662452,1725927037941,-500.0,0.00021664,2]
[337662453,1725927037952,-500.0,0.00021664,2]
[337662454,1725927037961,-500.0,0.00021665,2]
[337662455,1725927037971,-500.0,0.00021665,2]
[337662456,1725927037980,-500.0,0.00021665,2]
[337662457,1725927037990,-411.75500861,0.00021665,2]
[337662458,1725927037998,-500.0,0.00021665,2]
[337662459,1725927038009,-418.08342351,0.00021665,2]
[337662460,1725927038018,-500.0,0.00021665,2]
[337662461,1725927038027,-500.0,0.00021665,2]
[337662462,1725927038037,-500.0,0.00021665,2]
[337662463,1725927038048,-500.0,0.00021665,2]
[337662464,1725927038057,-500.0,0.00021665,2]
[337662465,1725927038067,-500.0,0.00021665,2]
[337662466,1725927038076,-500.0,0.00021665,2]
[337662467,1725927038086,-500.0,0.00021665,2]
[337662468,1725927038096,-226.1424376,0.00021665,2]
[337662469,1725927038105,-163722.386329,0.00021666,3]
[337662470,1725927038115,-108001.492882,0.00021666,3]
[337662471,1725927038125,-500.0,0.00021673,2]
[337662472,1725927038134,-500.0,0.00021673,2]
[337662473,1725927038144,-444.94118575,0.00021678,3]
[337662501,1725927039700,-318.06942175,0.00021678,3]
[337662502,1725927039755,-200571.62363273,0.00021678,3]
[337662619,1725927042683,-824.48423363,0.00021678,3]
[337662644,1725927042992,-125285.65418314,0.00021678,3]
[337662645,1725927043002,-142839.12636676,0.00021678,3]
[337662646,1725927043017,-73163.85939824,0.00021678,3]
[337662647,1725927043027,-10129.57999899,0.00021688,2]
[337662863,1725927349090,171.258472,0.00019958,2]
[337662870,1725927642008,250.0,0.00019665,2]
[337662871,1725927642241,250.0,0.00019719,2]
[337662872,1725927642470,250.0,0.00019773,2]
[337662873,1725927642688,250.0,0.00019827,2]
[337662874,1725927643088,250.0,0.00019881,2]
[337662875,1725927643306,250.0,0.00019935,2]
[337662876,1725927643563,250.0,0.00019989,2]
[337662877,1725927659813,165.65060423,0.0002,2]
[337662878,1725927714661,176.107265,0.00019219,2]
[337662880,1725927842613,3000.0,0.00019233,2]
[337662881,1725927908193,5000.58856,0.0001923,2]
[337662882,1725927908596,5000.58856,0.00019915,2]
[337662887,1725927956267,5000.0,0.00020001,2]
[337662889,1725927964196,5000.0,0.00020001,2]
[337662890,1725927972191,5000.0,0.00020001,2]
[337662895,1725927980585,5000.0,0.00020001,2]
[337662896,1725927983756,24900.0,0.00019223,2]
[337662897,1725927988789,3317.48288871,0.00020001,2]
[337662898,1725927997076,2102.05271123,0.00020001,2]
[337662899,1725928018376,4985.07995941,0.00028,120]
[337662900,1725928075540,15966.07923379,0.0002,2]
[337662911,1725928085976,6001.56132123,0.00018447,2]
[337662912,1725928092420,3503.68037715,0.000167,2]
[337662913,1725928099602,397.31946211,0.000123,2]
[337662914,1725928101067,21155.37307684,0.0002,2]
[337662915,1725928108166,3439.57098946,0.0002,2]
[337662916,1725928111307,1997.04374862,0.000176,2]
[337662917,1725928114177,11031.77900277,0.00019,2]
[337662919,1725928123286,111686.80189796,0.0002,2]
[337662920,1725928123474,11556.34026891,0.0001,2]
[337662921,1725928123858,75345.7198474,0.0001999,2]
[337662922,1725928124143,192.26180968,0.0002,2]
[337662923,1725928124991,14812.98795413,0.000129,2]
[337662924,1725928128984,250.0,0.00019474,2]
[337662925,1725928129218,250.0,0.00019527,2]
[337662926,1725928129448,250.0,0.00019581,2]
[337662927,1725928129702,250.0,0.00019634,2]
[337662928,1725928129931,250.0,0.00019687,2]
[337662929,1725928130137,250.0,0.00019741,2]
[337662930,1725928130359,250.0,0.00019794,2]
[337662931,1725928130613,250.0,0.00019848,2]
[337662932,1725928130906,250.0,0.00019901,2]
[337662933,1725928131142,250.0,0.00019954,2]
[337662934,1725928135271,156.09404122,0.00020001,2]
[337662937,1725928190469,867.92,0.0001891,15]
[337662938,1725928217445,176.1072655,0.0001924,2]
[337662963,1725928231918,-150.0,0.00020001,2]
[337662964,1725928231927,-126.31879854,0.00020008,2]
[337663037,1725928237862,-123.68120146,0.00020008,2]
[337663038,1725928237871,-250.0,0.00020061,2]
[337663040,1725928237880,-250.0,0.00020115,2]
[337663041,1725928237889,-250.0,0.00020168,2]
[337663042,1725928237898,-250.0,0.00020221,2]
[337663043,1725928237907,-250.0,0.00020275,2]
[337663044,1725928237924,-250.0,0.00020328,2]
[337663045,1725928237935,-300.0,0.00020376,2]
[337663046,1725928237944,-300.0,0.00020376,2]
[337663047,1725928237954,-38786.92259733,0.00020377,2]
[337663048,1725928237964,-250.0,0.00020382,2]
[337663049,1725928237973,-250.0,0.00020435,2]
[337663050,1725928237984,-250.0,0.00020488,2]
[337663051,1725928237995,-5000.58856,0.000206,2]
[337663052,1725928238006,-251.0,0.00020822,2]
[337663053,1725928238017,-5117.31013799,0.00020916,2]
[337663054,1725928238029,-5117.31013799,0.00021167,2]
[337663055,1725928238038,-5117.31013799,0.00021432,2]
[337663056,1725928238047,-150.59905972,0.00021509,2]
[337663057,1725928238056,-178.93074898,0.00021551,2]
[337663058,1725928238065,-1295.71508847,0.00021578,2]
[337663059,1725928238075,-507.18,0.0002163,3]
[337663060,1725928238085,-253.59,0.0002163,3]
[337663061,1725928238094,-760.82,0.0002163,3]
[337663062,1725928238103,-225.88810949,0.00021639,2]
[337663063,1725928238113,-500.0,0.00021639,2]
[337663064,1725928238122,-500.812646,0.00021639,2]
[337663065,1725928238131,-500.0,0.00021639,2]
[337663066,1725928238140,-500.0,0.00021639,2]
[337663067,1725928238149,-500.0,0.00021639,2]
[337663068,1725928238160,-500.0,0.00021639,2]
[337663069,1725928238169,-500.0,0.00021639,2]
[337663070,1725928238178,-500.0,0.00021639,2]
[337663071,1725928238187,-500.0,0.00021639,2]
[337663072,1725928238197,-500.0,0.00021639,2]
[337663073,1725928238206,-500.0,0.00021639,2]
[337663074,1725928238216,-500.0,0.00021639,2]
[337663075,1725928238225,-500.0,0.00021639,2]
[337663076,1725928238234,-500.0,0.00021639,2]
[337663077,1725928238244,-500.0,0.00021639,2]
[337663078,1725928238253,-500.0,0.00021639,2]
[337663079,1725928238263,-500.0,0.00021639,2]
[337663080,1725928238271,-500.0,0.00021639,2]
[337663081,1725928238282,-500.0,0.00021639,2]
[337663082,1725928238291,-500.0,0.00021639,2]
[337663083,1725928238301,-500.0,0.00021639,2]
[337663084,1725928238311,-462.46949818,0.00021639,2]
[337663085,1725928238321,-500.0,0.00021639,2]
[337663086,1725928238332,-500.0,0.00021639,2]
[337663087,1725928238341,-500.0,0.00021639,2]
[337663088,1725928238350,-500.0,0.00021639,2]
[337663089,1725928238360,-500.0,0.00021639,2]
[337663090,1725928238369,-500.0,0.00021639,2]
[337663091,1725928238378,-500.0,0.00021639,2]
[337663092,1725928238387,-500.0,0.00021639,2]
[337663093,1725928238397,-500.0,0.00021639,2]
[337663094,1725928238406,-178.93074897,0.0002164,2]
[337663095,1725928238420,-500.0,0.0002164,2]
[337663096,1725928238429,-288.22850603,0.0002164,2]
[337663097,1725928238439,-500.0,0.0002164,2]
[337663098,1725928238448,-500.0,0.0002164,2]
[337663099,1725928238457,-453.27893561,0.0002164,2]
[337663100,1725928238466,-500.0,0.0002164,2]
[337663101,1725928238476,-500.0,0.0002164,2]
[337663102,1725928238486,-500.0,0.0002164,2]
[337663103,1725928238496,-500.0,0.0002164,2]
[337663104,1725928238507,-500.0,0.0002164,2]
[337663105,1725928238516,-286.59510494,0.0002164,2]
[337663106,1725928238589,-213.40489506,0.0002164,2]
[337663107,1725928238599,-504.77310588,0.0002164,2]
[337663108,1725928238608,-79.37583008,0.00021641,3]
[337663109,1725928238619,-128846.83461343,0.00021641,3]
[337663119,1725928241772,-10237.81793549,0.00021641,3]
[337663120,1725928241782,-92001.6878955,0.00021641,3]
[337663121,1725928241791,-194.98,0.00021641,3]
[337663122,1725928241800,-584.94,0.00021641,3]
[337663123,1725928241810,-189918.62100629,0.00021678,3]
[337663136,1725928242852,-88409.43575271,0.00021678,3]
[337663137,1725928242862,-99381.04127939,0.00021678,3]
[337663138,1725928242909,-24206.788149,0.00021678,3]
[337663139,1725928242922,-3117.08005302,0.00021678,3]
[337663233,1725928653913,24900.0,0.00019999,2]
[337663402,1725928725434,-156.47594685,0.00020001,2]
[337663403,1725928725457,-192.58900396,0.00020018,2]
[337663404,1725928725479,-185.29193,0.00020118,2]
[337663405,1725928725501,-300.0,0.00020655,2]
[337663406,1725928725524,-300.0,0.00020655,2]
[337663407,1725928725549,-3000.0,0.00020656,2]
[337663408,1725928725574,-19600.0,0.00020656,2]
[337663409,1725928725595,-191.79785784,0.00021488,2]
[337663410,1725928725618,-4029.53621609,0.00021488,2]
[337663411,1725928725641,-500.0,0.00021556,2]
[337663412,1725928725665,-201.75995422,0.00021556,2]
[337663413,1725928725687,-500.0,0.00021556,2]
[337663414,1725928725712,-500.0,0.00021556,2]
[337663415,1725928725736,-285.19337395,0.00021556,2]
[337663416,1725928725759,-500.0,0.00021556,2]
[337663417,1725928725781,-350.87255381,0.00021556,2]
[337663418,1725928725804,-500.0,0.00021556,2]
[337663419,1725928725828,-500.0,0.00021556,2]
[337663420,1725928725850,-500.0,0.00021556,2]
[337663421,1725928725873,-500.0,0.00021556,2]
[337663422,1725928725895,-500.0,0.00021556,2]
[337663423,1725928725917,-500.0,0.00021556,2]
[337663424,1725928725941,-500.0,0.00021556,2]
[337663425,1725928725963,-500.0,0.00021556,2]
[337663426,1725928725986,-500.0,0.00021556,2]
[337663427,1725928726009,-500.0,0.00021556,2]
[337663428,1725928726032,-500.0,0.00021556,2]
[337663429,1725928726054,-500.0,0.00021556,2]
[337663430,1725928726074,-500.0,0.00021556,2]
[337663431,1725928726097,-500.0,0.00021556,2]
[337663432,1725928726119,-500.0,0.00021556,2]
[337663433,1725928726142,-331.35290043,0.00021556,2]
[337663434,1725928726164,-500.0,0.00021556,2]
[337663435,1725928726186,-500.0,0.00021556,2]
[337663436,1725928726208,-500.0,0.00021556,2]
[337663437,1725928726229,-500.0,0.00021556,2]
[337663438,1725928726250,-500.0,0.00021556,2]
[337663439,1725928726272,-500.0,0.00021556,2]
[337663440,1725928726294,-500.0,0.00021556,2]
[337663441,1725928726317,-500.0,0.00021556,2]
[337663442,1725928726337,-500.0,0.00021556,2]
[337663443,1725928726359,-500.0,0.00021556,2]
[337663444,1725928726381,-500.0,0.00021556,2]
[337663445,1725928726404,-500.0,0.00021556,2]
[337663446,1725928726450,15375.13026285,0.00021439,2]
[337663447,1725928738558,192.58900396,0.00019901,2]
[337663448,1725928777279,219.741682,0.00019673,2]
[337663450,1725928789323,350.0,0.00028,120]
[337663451,1725928814998,400.0,0.0002,3]
[337663452,1725928857965,192.58900396,0.00019901,2]
[337663454,1725928929765,3000.0,0.00019707,2]
[337663455,1725928992686,300.0,0.00028,120]
[337663456,1725929008560,10000.0,0.00020001,2]
[337663457,1725929011062,400.0,0.0002,2]
[337663458,1725929017044,1700.0,0.00020001,2]
[337663459,1725929045476,-5147.87,0.0003,120]
[337663498,1725929154187,286.04384766,0.0002,2]
[337663505,1725929175446,24900.0,0.00019734,2]
[337663509,1725929228232,250.0,0.00019981,2]
[337663510,1725929278674,219.741682,0.00019753,2]
[337663618,1725929432235,-250.0,0.00020036,2]
[337663621,1725929432245,-250.0,0.00020091,2]
[337663623,1725929432254,-250.0,0.00020146,2]
[337663624,1725929432264,-250.0,0.000202,2]
[337663625,1725929432274,-250.0,0.00020255,2]
[337663626,1725929432283,-250.0,0.0002031,2]
[337663627,1725929432293,-250.0,0.00020365,2]
[337663628,1725929432303,-250.0,0.0002042,2]
[337663629,1725929432313,-250.0,0.00020474,2]
[337663630,1725929432322,-189.20196424,0.00020484,2]
[337663631,1725929432332,-250.0,0.00020529,2]
[337663632,1725929432342,-250.0,0.00020584,2]
[337663633,1725929432351,-250.0,0.00020639,2]
[337663634,1725929432361,-250.0,0.00020694,2]
[337663635,1725929432371,-250.0,0.00020748,2]
[337663636,1725929432380,-250.0,0.00020803,2]
[337663637,1725929432390,-251.0,0.00020822,2]
[337663638,1725929432399,-250.0,0.00020858,2]
[337663639,1725929432410,-250.0,0.00020913,2]
[337663640,1725929432419,-250.0,0.00020968,2]
[337663641,1725929432429,-1500.0,0.00021,2]
[337663642,1725929432438,-250.0,0.00021022,2]
[337663643,1725929432448,-1000.0,0.000213,2]
[337663644,1725929432458,-300.0,0.00021311,2]
[337663645,1725929432468,-1000.0,0.00021312,2]
[337663646,1725929432478,-300.0,0.00021312,2]
[337663647,1725929432488,-1000.0,0.00021328,2]
[337663648,1725929432497,-189.20196424,0.00021336,2]
[337663649,1725929432507,-977.01502749,0.0002134,2]
[337663650,1725929432517,-3525.84418907,0.00021344,2]
[337663651,1725929432528,-191.79785784,0.00021432,2]
[337663652,1725929432539,-5460.04784904,0.00021436,2]
[337663653,1725929432558,-8411.9584157,0.00021436,2]
[337663654,1725929432568,-1349.29062882,0.00021436,2]
[337663655,1725929432578,-191.79785784,0.00021436,2]
[337663656,1725929432588,-14954.80171864,0.00021439,2]
[337663731,1725929438114,-13622.92993845,0.00021439,2]
[337663733,1725929438124,-1000.0,0.00021444,2]
[337663734,1725929438135,-1000.0,0.00021457,2]
[337663735,1725929438144,-1000.0,0.00021465,2]
[337663737,1725929438154,-1000.0,0.00021485,2]
[337663738,1725929438164,-5000.0,0.000215,2]
[337663740,1725929438173,-1000.0,0.00021513,2]
[337663742,1725929438183,-612.78,0.00021522,3]
[337663743,1725929438192,-306.39,0.00021522,3]
[337663744,1725929438202,-153.19,0.00021522,3]
[337663745,1725929438213,-459.6,0.00021522,3]
[337663746,1725929438223,-1000.0,0.00021528,2]
[337663747,1725929438235,-549.63536177,0.00021532,2]
[337663748,1725929438245,-500.0,0.00021532,2]
[337663749,1725929438255,-500.0,0.00021532,2]
[337663751,1725929438265,-500.0,0.00021532,2]
[337663754,1725929438276,-500.0,0.00021532,2]
[337663756,1725929438288,-545.61078767,0.00021532,2]
[337663757,1725929438300,-500.0,0.00021532,2]
[337663758,1725929438309,-500.0,0.00021532,2]
[337663759,1725929438319,-1000.0,0.00021532,2]
[337663760,1725929438330,-133109.817482,0.00021533,3]
[337663761,1725929438340,-23588.3332015,0.00021533,3]
[337663773,1725929440435,-168.26379991,0.00021533,3]
[337663774,1725929440447,-12479.84153415,0.00021533,3]
[337663775,1725929440459,-12485.01700004,0.00021533,3]
[337663776,1725929440470,-8011.08448489,0.00021533,3]
[337663777,1725929440486,-24333.81800621,0.00021533,3]
[337663778,1725929440495,-133109.817482,0.00021535,3]
[337663779,1725929440505,-81066.3580267,0.00021535,3]
[337663780,1725929440515,-44190.23538688,0.00021537,3]
[337663881,1725929917397,162.81036288,0.0002,2]
[337663883,1725929999011,3000.0,0.00019765,2]
[337663888,1725930218690,4374.0,0.00028,120]
[337663894,1725930313784,24900.0,0.00019713,2]
[337663904,1725930511014,3000.0,0.00019925,2]
[337663948,1725930632237,-171.211305,0.00020195,2]
[337663950,1725930632247,-171.211306,0.00020249,2]
[337663952,1725930632259,-78.788694,0.00020249,2]
[337663954,1725930632269,-250.0,0.00020305,2]
[337663956,1725930632279,-250.0,0.0002036,2]
[337663957,1725930632288,-116.17645791,0.00020416,2]
[337663979,1725930638288,-133.82354209,0.00020416,2]
[337663980,1725930638303,-250.0,0.00020471,2]
[337663981,1725930638316,-250.0,0.00020527,2]
[337663982,1725930638330,-250.0,0.00020582,2]
[337663983,1725930638344,-250.0,0.00020638,2]
[337663984,1725930638358,-250.0,0.00020693,2]
[337663985,1725930638372,-250.0,0.00020749,2]
[337663986,1725930638386,-250.0,0.00020804,2]
[337663987,1725930638399,-251.0,0.00020822,2]
[337663988,1725930638414,-250.0,0.0002086,2]
[337663989,1725930638428,-250.0,0.00020916,2]
[337663990,1725930638441,-422.5170663,0.00020951,2]
[337663991,1725930638455,-250.0,0.00020971,2]
[337663992,1725930638469,-250.0,0.00021027,2]
[337663993,1725930638483,-250.0,0.00021082,2]
[337663994,1725930638496,-250.0,0.00021138,2]
[337663995,1725930638510,-250.0,0.00021193,2]
[337663996,1725930638523,-250.0,0.00021249,2]
[337663997,1725930638536,-3085.11366541,0.0002127,2]
[337663998,1725930638550,-300.0,0.00021273,2]
[337663999,1725930638564,-1000.0,0.00021279,2]
[337664000,1725930638578,-250.0,0.00021304,2]
[337664001,1725930638592,-214.87916316,0.00021325,2]
[337664002,1725930638608,-999.48240285,0.00021325,2]
[337664003,1725930638621,-459.6,0.00021359,3]
[337664004,1725930638636,-500.0,0.00021368,2]
[337664005,1725930638649,-450.00000005,0.00021368,2]
[337664006,1725930638664,-500.0,0.00021368,2]
[337664007,1725930638677,-500.0,0.00021368,2]
[337664008,1725930638693,-500.0,0.00021368,2]
[337664009,1725930638707,-500.0,0.00021368,2]
[337664010,1725930638722,-500.0,0.00021368,2]
[337664011,1725930638738,-500.0,0.00021368,2]
[337664012,1725930638753,-500.0,0.00021368,2]
[337664013,1725930638767,-500.0,0.00021368,2]
[337664014,1725930638780,-972.09478567,0.00021368,2]
[337664015,1725930638794,-972.09478567,0.00021368,2]
[337664016,1725930638808,-972.09478567,0.00021368,2]
[337664017,1725930638821,-972.09478567,0.00021368,2]
[337664018,1725930638835,-972.09478567,0.00021368,2]
[337664019,1725930638848,-972.09478567,0.00021368,2]
[337664020,1725930638862,-972.09478567,0.00021368,2]
[337664021,1725930638875,-972.09478567,0.00021368,2]
[337664022,1725930638891,-972.09478567,0.00021368,2]
[337664023,1725930638924,-972.09478567,0.00021368,2]
[337664024,1725930638946,-972.09478567,0.00021368,2]
[337664025,1725930638967,-972.09478567,0.00021368,2]
[337664026,1725930638986,-972.09478567,0.00021368,2]
[337664027,1725930639004,-972.09478567,0.00021368,2]
[337664028,1725930639022,-972.09478567,0.00021368,2]
[337664029,1725930639038,-972.09478567,0.00021368,2]
[337664030,1725930639055,-972.09478567,0.00021368,2]
[337664031,1725930639072,-972.09478567,0.00021368,2]
[337664032,1725930639088,-972.09478567,0.00021368,2]
[337664033,1725930639103,-972.09478567,0.00021368,2]
[337664034,1725930639118,-972.09478567,0.00021368,2]
[337664035,1725930639132,-972.09478567,0.00021368,2]
[337664036,1725930639142,-972.09478567,0.00021368,2]
[337664037,1725930639152,-972.09478567,0.00021368,2]
[337664038,1725930639161,-972.09478567,0.00021368,2]
[337664039,1725930639171,-972.09478567,0.00021368,2]
[337664040,1725930639181,-972.09478567,0.00021368,2]
[337664041,1725930639191,-972.09478567,0.00021368,2]
[337664042,1725930639201,-972.09478567,0.00021368,2]
[337664043,1725930639211,-972.09478567,0.00021368,2]
[337664044,1725930639222,-972.09478567,0.00021368,2]
[337664045,1725930639233,-972.09478567,0.00021368,2]
[337664046,1725930639656,-972.09478567,0.00021368,2]
[337664047,1725930639676,-972.09478567,0.00021368,2]
[337664048,1725930639686,-972.09478567,0.00021368,2]
[337664049,1725930639697,-972.09478567,0.00021368,2]
[337664050,1725930639707,-972.09478567,0.00021368,2]
[337664051,1725930639718,-972.09478567,0.00021368,2]
[337664052,1725930639728,-972.09478567,0.00021368,2]
[337664053,1725930639738,-972.09478567,0.00021368,2]
[337664054,1725930639749,-972.09478567,0.00021368,2]
[337664055,1725930639760,-972.09478567,0.00021368,2]
[337664056,1725930639770,-972.09478567,0.00021368,2]
[337664057,1725930639780,-972.09478567,0.00021368,2]
[337664058,1725930639790,-972.09478567,0.00021368,2]
[337664059,1725930639800,-972.09478567,0.00021368,2]
[337664060,1725930639810,-972.09478567,0.00021368,2]
[337664061,1725930639820,-972.09478567,0.00021368,2]
[337664063,1725930639829,-972.09478567,0.00021368,2]
[337664064,1725930639839,-972.09478567,0.00021368,2]
[337664065,1725930639848,-972.09478567,0.00021368,2]
[337664066,1725930639858,-972.09478567,0.00021368,2]
[337664067,1725930639867,-972.09478567,0.00021368,2]
[337664068,1725930639877,-972.09478567,0.00021368,2]
[337664069,1725930639887,-972.09478567,0.00021368,2]
[337664070,1725930639897,-972.09478567,0.00021368,2]
[337664071,1725930639907,-972.09478567,0.00021368,2]
[337664072,1725930639917,-972.09478567,0.00021368,2]
[337664073,1725930639926,-972.09478567,0.00021368,2]
[337664074,1725930639936,-972.09478567,0.00021368,2]
[337664075,1725930639946,-972.09478567,0.00021368,2]
[337664076,1725930639956,-972.09478567,0.00021368,2]
[337664077,1725930639965,-972.09478567,0.00021368,2]
[337664078,1725930639980,-929.56563879,0.00021368,2]
[337664079,1725930639990,-929.56563879,0.00021368,2]
[337664081,1725930640001,-929.56563879,0.00021368,2]
[337664082,1725930640012,-929.56563879,0.00021368,2]
[337664083,1725930640022,-929.56563879,0.00021368,2]
[337664084,1725930640032,-929.56563879,0.00021368,2]
[337664085,1725930640042,-929.56563879,0.00021368,2]
[337664086,1725930640051,-929.56563879,0.00021368,2]
[337664087,1725930640061,-929.56563879,0.00021368,2]
[337664088,1725930640071,-929.56563879,0.00021368,2]
[337664089,1725930640081,-929.56563879,0.00021368,2]
[337664090,1725930640090,-929.56563879,0.00021368,2]
[337664091,1725930640100,-929.56563879,0.00021368,2]
[337664092,1725930640110,-929.56563879,0.00021368,2]
[337664093,1725930640120,-929.56563879,0.00021368,2]
[337664094,1725930640129,-929.56563879,0.00021368,2]
[337664095,1725930640139,-929.56563879,0.00021368,2]
[337664096,1725930640149,-929.56563879,0.00021368,2]
[337664097,1725930640159,-549.63536177,0.00021368,2]
[337664098,1725930640168,-500.0,0.00021368,2]
[337664099,1725930640177,-545.61078767,0.00021368,2]
[337664100,1725930640187,-500.0,0.00021368,2]
[337664101,1725930640196,-500.0,0.00021368,2]
[337664102,1725930640206,-500.0,0.00021368,2]
[337664103,1725930640216,-500.0,0.00021368,2]
[337664104,1725930640229,-500.0,0.00021368,2]
[337664105,1725930640238,-612.78,0.00021369,3]
[337664106,1725930640248,-306.39,0.00021369,3]
[337664107,1725930640258,-153.19,0.00021369,3]
[337664108,1725930640269,-84774.51528517,0.00021369,3]
[337664112,1725930640926,-184343.47283883,0.00021369,3]
[337664113,1725930640935,-7761.80073566,0.00021369,3]
[337664114,1725930640945,-153.0,0.0002137,2]
[337664115,1725930640954,-153.0,0.0002137,2]
[337664116,1725930640964,-153.0,0.0002137,2]
[337664117,1725930640974,-76039.95525658,0.0002137,3]
[337664275,1725930646378,-270.2911603,0.0002137,3]
[337664277,1725930646391,-283.28519999,0.0002137,3]
[337664304,1725930788551,142345.34127585,0.0002,2]
[337664305,1725930788580,8013.74475584,0.0002,2]
[337664306,1725930788603,199995.87232831,0.0002,2]
[337664313,1725931084755,2449.3781605,0.00019578,2]
[337664314,1725931118097,250.0,0.00019724,2]
[337664315,1725931121991,250.0,0.00019779,2]
[337664316,1725931122439,250.0,0.00019833,2]
[337664317,1725931122701,250.0,0.00019887,2]
[337664318,1725931122925,250.0,0.00019941,2]
[337664319,1725931123186,250.0,0.00019995,2]
[337664333,1725931571203,24900.0,0.00019322,2]
[337664340,1725931662887,250.0,0.0001999,2]
[337664342,1725931703669,10078.50885375,0.000125,2]
[337664343,1725931715424,6417.2408945,0.00019,2]
[337664344,1725931716558,187.03717694,0.000191,12]
[337664374,1725931720287,2594.45171571,0.00015,7]
[337664375,1725931721579,14413.51713585,0.00014,4]
[337664493,1725931838683,-250.0,0.00020045,2]
[337664495,1725931838693,-185.29193,0.00020099,2]
[337664497,1725931838703,-250.0,0.000201,2]
[337664499,1725931838713,-250.0,0.00020155,2]
[337664501,1725931838723,-250.0,0.0002021,2]
[337664503,1725931838733,-250.0,0.00020264,2]
[337664505,1725931838743,-44.76146129,0.00020319,2]
[337664507,1725931838755,-205.23853871,0.00020319,2]
[337664509,1725931838764,-250.0,0.00020374,2]
[337664511,1725931838774,-300.0,0.00020376,2]
[337664513,1725931838784,-300.0,0.00020376,2]
[337664515,1725931838795,-22244.84315216,0.00020377,2]
[337664517,1725931838805,-3158.18379494,0.00020428,2]
[337664519,1725931838815,-250.0,0.00020429,2]
[337664521,1725931838824,-2699.47445726,0.00020436,2]
[337664523,1725931838835,-250.0,0.00020484,2]
[337664525,1725931838845,-7357.90711,0.0002052,2]
[337664527,1725931838854,-499.15897736,0.00020533,2]
[337664529,1725931838865,-250.0,0.00020539,2]